fUSD/lending_fUSD_20260512
["ID","MTS","AMOUNT","RATE_DAILY","PERIOD"]
[422074961,1778551848000,-900.0,0.00039973,30]
[422074950,1778551848000,-900.0,0.00039973,30]
[422074960,1778551848000,-900.0,0.00039973,30]
[422074955,1778551848000,-900.0,0.00039973,30]
[422074958,1778551848000,-900.0,0.00039973,30]
[422074957,1778551848000,-900.0,0.00039973,30]
[422074953,1778551848000,-900.0,0.00039973,30]
[422074954,1778551848000,-900.0,0.00039973,30]
[422074967,1778551848000,-900.0,0.00039973,30]
[422074959,1778551848000,-900.0,0.00039973,30]
[422074965,1778551848000,-900.0,0.00039973,30]
[422074973,1778551848000,-900.0,0.00039973,30]
[422074968,1778551848000,-900.0,0.00039973,30]
[422074969,1778551848000,-900.0,0.00039973,30]
[422074964,1778551848000,-900.0,0.00039973,30]
[422074971,1778551848000,-900.0,0.00039973,30]
[422074970,1778551848000,-900.0,0.00039973,30]
[422074972,1778551848000,-900.0,0.00039973,30]
[422074975,1778551848000,-900.0,0.00039973,30]
[422074974,1778551848000,-900.0,0.00039973,30]
[422074976,1778551848000,-170.0,0.00039973,30]
[422074977,1778551848000,-393.85408388,0.00039995,120]
[422074979,1778551848000,-3050.84825275,0.00039999,2]
[422074952,1778551848000,-900.0,0.00039973,30]
[422074966,1778551848000,-900.0,0.00039973,30]
[422074956,1778551848000,-900.0,0.00039973,30]
[422074923,1778551848000,-861.0,0.00039907,5]
[422074948,1778551848000,-900.0,0.00039973,30]
[422074978,1778551848000,-516.22911801,0.00039995,2]
[422074922,1778551848000,-237.23936084,0.000399,120]
[422074924,1778551848000,-516.22911801,0.0003994,2]
[422074925,1778551848000,-423.69,0.00039945,2]
[422074926,1778551848000,-345.22,0.00039945,2]
[422074927,1778551848000,-400.0,0.0003997,2]
[422074928,1778551848000,-400.0,0.0003997,2]
[422074930,1778551848000,-900.0,0.00039973,30]
[422074929,1778551848000,-702.93465867,0.0003997,2]
[422074932,1778551848000,-900.0,0.00039973,30]
[422074933,1778551848000,-900.0,0.00039973,30]
[422074931,1778551848000,-900.0,0.00039973,30]
[422074935,1778551848000,-900.0,0.00039973,30]
[422074934,1778551848000,-900.0,0.00039973,30]
[422074936,1778551848000,-900.0,0.00039973,30]
[422074938,1778551848000,-900.0,0.00039973,30]
[422074937,1778551848000,-900.0,0.00039973,30]
[422074939,1778551848000,-900.0,0.00039973,30]
[422074941,1778551848000,-900.0,0.00039973,30]
[422074940,1778551848000,-900.0,0.00039973,30]
[422074944,1778551848000,-900.0,0.00039973,30]
[422074943,1778551848000,-900.0,0.00039973,30]
[422074942,1778551848000,-900.0,0.00039973,30]
[422074945,1778551848000,-900.0,0.00039973,30]
[422074949,1778551848000,-900.0,0.00039973,30]
[422074946,1778551848000,-900.0,0.00039973,30]
[422074947,1778551848000,-900.0,0.00039973,30]
[422074951,1778551848000,-900.0,0.00039973,30]
[422074981,1778551848000,-1562.0,0.0004,30]
[422074980,1778551848000,-1734.62772924,0.00039999,30]
[422074983,1778551848000,-213.22,0.0004,120]
[422075010,1778551848000,-459.64163305,0.0004,120]
[422075015,1778551848000,-365.3387325,0.0004,120]
[422075016,1778551848000,-7963.07703878,0.0004,120]
[422075018,1778551848000,-2533.49165214,0.0004,120]
[422075019,1778551848000,-363.29400436,0.0004,15]
[422075017,1778551848000,-124998.74903876,0.0004,120]
[422075021,1778551848000,-246.78291632,0.0004,120]
[422075020,1778551848000,-3000.0,0.0004,7]
[422075022,1778551848000,-202.30578908,0.0004,120]
[422075023,1778551848000,-10171.1740188,0.0004,120]
[422075028,1778551848000,-448.648593,0.0004,30]
[422075024,1778551848000,-74701.3283143,0.0004,30]
[422075012,1778551848000,-18619.62939161,0.0004,120]
[422075029,1778551848000,-151.0,0.0004,30]
[422075026,1778551848000,-448.648598,0.0004,30]
[422075027,1778551848000,-448.648598,0.0004,30]
[422075030,1778551848000,-151.0,0.0004,30]
[422075033,1778551848000,-500.0,0.0004,120]
[422075031,1778551848000,-151.0,0.0004,30]
[422075032,1778551848000,-500.0,0.0004,120]
[422075034,1778551848000,-500.0,0.0004,120]
[422075035,1778551848000,-500.0,0.0004,120]
[422075038,1778551848000,-500.0,0.0004,120]
[422075036,1778551848000,-500.0,0.0004,120]
[422075037,1778551848000,-500.0,0.0004,120]
[422075040,1778551848000,-500.0,0.0004,120]
[422075025,1778551848000,-448.648598,0.0004,30]
[422075014,1778551848000,-338.27807028,0.0004,120]
[422075039,1778551848000,-500.0,0.0004,120]
[422075013,1778551848000,-92039.68053962,0.0004,50]
[422075009,1778551848000,-166.2627477,0.0004,30]
[422074985,1778551848000,-17260.93,0.0004,120]
[422074990,1778551848000,-22500.0,0.0004,120]
[422074989,1778551848000,-400.89,0.0004,120]
[422074984,1778551848000,-754.87,0.0004,120]
[422074986,1778551848000,-311.55,0.0004,120]
[422074987,1778551848000,-816.73,0.0004,120]
[422074988,1778551848000,-207.12,0.0004,120]
[422074991,1778551848000,-159.7094816,0.0004,30]
[422074992,1778551848000,-193.03,0.0004,16]
[422074993,1778551848000,-161.0,0.0004,120]
[422074995,1778551848000,-160.0,0.0004,120]
[422074994,1778551848000,-2006.693065,0.0004,30]
[422074982,1778551848000,-12894.62,0.0004,120]
[422074998,1778551848000,-586.71014189,0.0004,120]
[422075011,1778551848000,-222.92849978,0.0004,120]
[422075008,1778551848000,-898.98306531,0.0004,120]
[422075007,1778551848000,-322341.6683769,0.0004,30]
[422075005,1778551848000,-318.39984985,0.0004,120]
[422074996,1778551848000,-2000.0,0.0004,30]
[422075004,1778551848000,-152.28168079,0.0004,60]
[422075006,1778551848000,-1011.98071609,0.0004,7]
[422075002,1778551848000,-1778.28255896,0.0004,120]
[422075000,1778551848000,-202.23,0.0004,120]
[422075001,1778551848000,-22697.64920365,0.0004,120]
[422074997,1778551848000,-152.0,0.0004,120]
[422074999,1778551848000,-435.90497554,0.0004,7]
[422075003,1778551848000,-5101.86705403,0.0004,120]
[422075081,1778551849000,-5027.373871,0.0004,20]
[422075079,1778551849000,-5027.373871,0.0004,20]
[422075078,1778551849000,-5027.373871,0.0004,20]
[422075077,1778551849000,-5027.373871,0.0004,20]
[422075071,1778551849000,-218.15135435,0.0004,120]
[422075075,1778551849000,-5027.373871,0.0004,20]
[422075074,1778551849000,-347.517931,0.0004,30]
[422075072,1778551849000,-5000.44377,0.0004,120]
[422075073,1778551849000,-5027.373871,0.0004,20]
[422075076,1778551849000,-5027.373871,0.0004,20]
[422075080,1778551849000,-347.517931,0.0004,30]
[422075088,1778551849000,-5027.373871,0.0004,20]
[422075083,1778551849000,-5027.373871,0.0004,20]
[422075085,1778551849000,-5027.373871,0.0004,20]
[422075084,1778551849000,-5027.373871,0.0004,20]
[422075087,1778551849000,-347.517931,0.0004,30]
[422075086,1778551849000,-5027.373871,0.0004,20]
[422075090,1778551849000,-5027.373871,0.0004,20]
[422075089,1778551849000,-5027.373871,0.0004,20]
[422075091,1778551849000,-5027.373871,0.0004,20]
[422075093,1778551849000,-5027.373871,0.0004,20]
[422075092,1778551849000,-347.517938,0.0004,30]
[422075094,1778551849000,-5027.373871,0.0004,20]
[422075070,1778551849000,-500.0,0.0004,120]
[422075082,1778551849000,-5027.373871,0.0004,20]
[422075069,1778551849000,-500.0,0.0004,120]
[422075055,1778551849000,-1136.281255,0.0004,28]
[422075068,1778551849000,-500.0,0.0004,120]
[422075098,1778551849000,-474.041222,0.0004,7]
[422075042,1778551849000,-500.0,0.0004,120]
[422075043,1778551849000,-500.0,0.0004,120]
[422075041,1778551849000,-500.0,0.0004,120]
[422075044,1778551849000,-500.0,0.0004,120]
[422075047,1778551849000,-500.0,0.0004,120]
[422075045,1778551849000,-500.0,0.0004,120]
[422075046,1778551849000,-500.0,0.0004,120]
[422075048,1778551849000,-500.0,0.0004,120]
[422075052,1778551849000,-500.0,0.0004,120]
[422075050,1778551849000,-500.0,0.0004,120]
[422075049,1778551849000,-1136.281255,0.0004,28]
[422075063,1778551849000,-500.0,0.0004,120]
[422075051,1778551849000,-500.0,0.0004,120]
[422075054,1778551849000,-298.99301472,0.0004,120]
[422075056,1778551849000,-1136.281255,0.0004,28]
[422075057,1778551849000,-1136.28125548,0.0004,28]
[422075059,1778551849000,-500.0,0.0004,120]
[422075058,1778551849000,-500.0,0.0004,120]
[422075060,1778551849000,-500.0,0.0004,120]
[422075061,1778551849000,-500.0,0.0004,120]
[422075064,1778551849000,-500.0,0.0004,120]
[422075067,1778551849000,-185.305765,0.0004,30]
[422075065,1778551849000,-500.0,0.0004,120]
[422075062,1778551849000,-500.0,0.0004,120]
[422075066,1778551849000,-500.0,0.0004,120]
[422075053,1778551849000,-500.0,0.0004,120]
[422075095,1778551849000,-5027.373871,0.0004,20]
[422075096,1778551849000,-5027.373869,0.0004,20]
[422075101,1778551849000,-151.0,0.0004,30]
[422075133,1778551849000,-1125.3,0.0004029,60]
[422075130,1778551849000,-156.9475,0.00040269,2]
[422075132,1778551849000,-185.26,0.0004029,60]
[422075131,1778551849000,-1562.0,0.00040274,30]
[422075134,1778551849000,-451815.99413646,0.000403,120]
[422075136,1778551849000,-153.940543,0.000403,30]
[422075137,1778551849000,-151.0,0.000403,30]
[422075135,1778551849000,-152.225093,0.000403,30]
[422075138,1778551849000,-271.94,0.00040358,10]
[422075142,1778551849000,-33871.5060622,0.000404,120]
[422075141,1778551849000,-3989.38,0.00040378,120]
[422075143,1778551849000,-194.32,0.00040435,120]
[422075127,1778551849000,-6002.44267792,0.00040235,12]
[422075140,1778551849000,-22500.0,0.00040375,120]
[422075144,1778551849000,-272.48,0.00040435,120]
[422075146,1778551849000,-166.43,0.000405,30]
[422075145,1778551849000,-12404.93,0.000405,120]
[422075147,1778551849000,-170.0,0.000405,120]
[422075148,1778551849000,-254.52,0.000405,10]
[422075150,1778551849000,-40238.91504083,0.000405,120]
[422075149,1778551849000,-191.59570719,0.000405,120]
[422075151,1778551849000,-176.74483828,0.000405,120]
[422075153,1778551849000,-516.22911801,0.0004052,2]
[422075154,1778551849000,-268.7,0.0004054,120]
[422075155,1778551849000,-1672.7364795,0.00040545,30]
[422075152,1778551849000,-170.6704131,0.000405,60]
[422075139,1778551849000,-318.45343967,0.00040365,120]
[422075126,1778551849000,-6002.44267792,0.00040235,12]
[422075097,1778551849000,-474.041222,0.0004,7]
[422075128,1778551849000,-6002.44267792,0.00040235,12]
[422075129,1778551849000,-155.4091,0.00040269,2]
[422075099,1778551849000,-474.041222,0.0004,7]
[422075100,1778551849000,-474.041226,0.0004,7]
[422075103,1778551849000,-1121.0,0.0004,30]
[422075102,1778551849000,-207.41478,0.0004,30]
[422075104,1778551849000,-151.0,0.0004,30]
[422075105,1778551849000,-516.22911801,0.0004002,2]
[422075106,1778551849000,-500.0,0.0004003,30]
[422075108,1778551849000,-195.84177592,0.000401,30]
[422075109,1778551849000,-309.0,0.000401,30]
[422075110,1778551849000,-1000.0,0.000401,30]
[422075113,1778551849000,-150.11,0.0004013,120]
[422075111,1778551849000,-691.0,0.000401,30]
[422075107,1778551849000,-3989.38,0.00040053,120]
[422075119,1778551849000,-6002.44267795,0.00040235,12]
[422075125,1778551849000,-6002.44267792,0.00040235,12]
[422075112,1778551849000,-2987.6011,0.00040115,30]
[422075124,1778551849000,-6002.44267792,0.00040235,12]
[422075123,1778551849000,-6002.44267792,0.00040235,12]
[422075122,1778551849000,-6002.44267792,0.00040235,12]
[422075118,1778551849000,-150.0,0.00040207,120]
[422075114,1778551849000,-516.22911801,0.00040176,2]
[422075121,1778551849000,-6002.44267792,0.00040235,12]
[422075116,1778551849000,-182.11,0.00040207,120]
[422075120,1778551849000,-6002.44267792,0.00040235,12]
[422075115,1778551849000,-3176.4,0.000402,14]
[422075117,1778551849000,-445.58,0.00040207,120]
[422075196,1778551850000,-152.50547285,0.00040774,30]
[422075199,1778551850000,-516.22911801,0.00040814,2]
[422075197,1778551850000,-171.2143659,0.00040774,30]
[422075198,1778551850000,-2265.0,0.000408,14]
[422075195,1778551850000,-168.01130534,0.00040772,120]
[422075190,1778551850000,-403.18,0.0004075,120]
[422075191,1778551850000,-187.05,0.0004075,120]
[422075188,1778551850000,-500.0,0.00040726,60]
[422075192,1778551850000,-22500.0,0.0004075,120]
[422075194,1778551850000,-400.0,0.0004077,3]
[422075202,1778551850000,-516.22911801,0.00040857,2]
[422075193,1778551850000,-400.0,0.0004077,3]
[422075200,1778551850000,-1562.0,0.00040822,30]
[422075214,1778551850000,-400.0,0.00040997,2]
[422075203,1778551850000,-217.26,0.00040861,120]
[422075205,1778551850000,-516.22911801,0.00040868,2]
[422075204,1778551850000,-540.86,0.00040861,120]
[422075207,1778551850000,-9550.17593192,0.000409,30]
[422075206,1778551850000,-1000.0,0.00040873,120]
[422075208,1778551850000,-516.22911801,0.00040907,2]
[422075210,1778551850000,-296492.0,0.0004095,60]
[422075209,1778551850000,-1659.52,0.00040916,2]
[422075211,1778551850000,-203.5752014,0.0004095,10]
[422075212,1778551850000,-516.22911801,0.00040964,2]
[422075213,1778551850000,-400.0,0.0004097,3]
[422075189,1778551850000,-444.39132273,0.00040726,60]
[422075215,1778551850000,-711.13005733,0.00040997,2]
[422075201,1778551850000,-7216.0,0.00040838,120]
[422075184,1778551850000,-3822.63757246,0.00040713,7]
[422075172,1778551850000,-1483.29717748,0.000407,12]
[422075186,1778551850000,-3822.63757246,0.00040713,7]
[422075156,1778551850000,-1613.0535,0.00040546,30]
[422075157,1778551850000,-1555.5,0.00040547,30]
[422075216,1778551850000,-151.0,0.00040997,14]
[422075161,1778551850000,-177.88262,0.0004059,120]
[422075160,1778551850000,-4706.04235972,0.0004059,2]
[422075159,1778551850000,-17887.89275537,0.0004059,2]
[422075171,1778551850000,-150.78,0.000407,120]
[422075163,1778551850000,-177.88263,0.0004059,120]
[422075164,1778551850000,-177.88262,0.0004059,120]
[422075162,1778551850000,-177.88262,0.0004059,120]
[422075165,1778551850000,-177.88262,0.0004059,120]
[422075166,1778551850000,-161.0,0.000406,120]
[422075170,1778551850000,-19011.1608719,0.000407,30]
[422075187,1778551850000,-2778.80355088,0.00040713,7]
[422075169,1778551850000,-5580.54,0.00040676,2]
[422075167,1778551850000,-261.48547088,0.000406,20]
[422075173,1778551850000,-3989.38,0.00040703,120]
[422075174,1778551850000,-3822.63757246,0.00040713,7]
[422075176,1778551850000,-3822.63757246,0.00040713,7]
[422075178,1778551850000,-3822.63757246,0.00040713,7]
[422075177,1778551850000,-3822.63757246,0.00040713,7]
[422075183,1778551850000,-3822.63757246,0.00040713,7]
[422075179,1778551850000,-3822.63757246,0.00040713,7]
[422075175,1778551850000,-3822.63757246,0.00040713,7]
[422075180,1778551850000,-3822.63757246,0.00040713,7]
[422075182,1778551850000,-3822.63757246,0.00040713,7]
[422075181,1778551850000,-3822.63757246,0.00040713,7]
[422075185,1778551850000,-3822.63757246,0.00040713,7]
[422075168,1778551850000,-1444.0,0.00040658,120]
[422075158,1778551850000,-1562.0,0.00040548,30]
[422075218,1778551850000,-2256.62824294,0.00040999,30]
[422075220,1778551850000,-500.0,0.00040999,30]
[422075253,1778551850000,-500.0,0.00040999,30]
[422075255,1778551850000,-200.0,0.00040999,30]
[422075254,1778551850000,-152.0,0.00040999,30]
[422075251,1778551850000,-151.0,0.00040999,30]
[422075257,1778551850000,-500.0,0.00040999,30]
[422075256,1778551850000,-464.05848484,0.00040999,30]
[422075259,1778551850000,-500.0,0.00040999,30]
[422075260,1778551850000,-1328.27659266,0.00040999,30]
[422075258,1778551850000,-151.0,0.00040999,30]
[422075262,1778551850000,-200.0,0.00040999,30]
[422075264,1778551850000,-500.0,0.00040999,30]
[422075261,1778551850000,-152.0,0.00040999,30]
[422075263,1778551850000,-500.0,0.00040999,30]
[422075252,1778551850000,-500.0,0.00040999,30]
[422075265,1778551850000,-151.0,0.00040999,30]
[422075267,1778551850000,-152.0,0.00040999,30]
[422075269,1778551850000,-500.0,0.00040999,30]
[422075270,1778551850000,-500.0,0.00040999,30]
[422075268,1778551850000,-500.0,0.00040999,30]
[422075272,1778551850000,-200.0,0.00040999,30]
[422075271,1778551850000,-151.0,0.00040999,30]
[422075273,1778551850000,-1428.38747117,0.00040999,30]
[422075274,1778551850000,-152.0,0.00040999,30]
[422075276,1778551850000,-500.0,0.00040999,30]
[422075275,1778551850000,-500.0,0.00040999,30]
[422075277,1778551850000,-151.0,0.00040999,30]
[422075217,1778551850000,-1030.0,0.00040999,30]
[422075279,1778551850000,-200.0,0.00040999,30]
[422075266,1778551850000,-1377.42282659,0.00040999,30]
[422075248,1778551850000,-666.72878,0.00040999,30]
[422075278,1778551850000,-286.47749038,0.00040999,30]
[422075249,1778551850000,-1280.88388878,0.00040999,30]
[422075250,1778551850000,-263.95631916,0.00040999,30]
[422075222,1778551850000,-500.0,0.00040999,30]
[422075221,1778551850000,-151.0,0.00040999,30]
[422075224,1778551850000,-518.5,0.00040999,30]
[422075223,1778551850000,-1068.11,0.00040999,30]
[422075226,1778551850000,-500.0,0.00040999,30]
[422075225,1778551850000,-151.0,0.00040999,30]
[422075227,1778551850000,-1107.63007,0.00040999,30]
[422075230,1778551850000,-500.0,0.00040999,30]
[422075228,1778551850000,-537.6845,0.00040999,30]
[422075233,1778551850000,-151.0,0.00040999,30]
[422075232,1778551850000,-557.5788265,0.00040999,30]
[422075231,1778551850000,-1148.61238259,0.00040999,30]
[422075229,1778551850000,-151.0,0.00040999,30]
[422075219,1778551850000,-6651.37521276,0.00040999,30]
[422075236,1778551850000,-151.0,0.00040999,30]
[422075243,1778551850000,-1235.18214925,0.00040999,30]
[422075245,1778551850000,-500.0,0.00040999,30]
[422075244,1778551850000,-151.0,0.00040999,30]
[422075247,1778551850000,-200.0,0.00040999,30]
[422075234,1778551850000,-500.0,0.00040999,30]
[422075241,1778551850000,-156.587,0.00040999,30]
[422075246,1778551850000,-152.0,0.00040999,30]
[422075238,1778551850000,-151.0,0.00040999,30]
[422075242,1778551850000,-642.94,0.00040999,30]
[422075239,1778551850000,-517.26831152,0.00040999,30]
[422075237,1778551850000,-1191.11104075,0.00040999,30]
[422075235,1778551850000,-620.0,0.00040999,30]
[422075240,1778551850000,-500.0,0.00040999,30]
[422075322,1778551851000,-200.0,0.00040999,30]
[422075317,1778551851000,-152.0,0.00040999,30]
[422075319,1778551851000,-151.0,0.00040999,30]
[422075336,1778551851000,-251.0,0.00040999,30]
[422075311,1778551851000,-200.0,0.00040999,30]
[422075318,1778551851000,-500.0,0.00040999,30]
[422075320,1778551851000,-151.0,0.00040999,30]
[422075316,1778551851000,-200.0,0.00040999,30]
[422075313,1778551851000,-500.0,0.00040999,30]
[422075314,1778551851000,-151.0,0.00040999,30]
[422075315,1778551851000,-500.0,0.00040999,30]
[422075321,1778551851000,-500.0,0.00040999,30]
[422075325,1778551851000,-151.0,0.00040999,30]
[422075323,1778551851000,-152.0,0.00040999,30]
[422075326,1778551851000,-156.587,0.00040999,30]
[422075329,1778551851000,-152.0,0.00040999,30]
[422075328,1778551851000,-500.0,0.00040999,30]
[422075327,1778551851000,-200.0,0.00040999,30]
[422075330,1778551851000,-500.0,0.00040999,30]
[422075332,1778551851000,-162.380719,0.00040999,30]
[422075331,1778551851000,-151.0,0.00040999,30]
[422075334,1778551851000,-152.0,0.00040999,30]
[422075333,1778551851000,-200.0,0.00040999,30]
[422075280,1778551851000,-1020.60422882,0.00040999,30]
[422075312,1778551851000,-152.0,0.00040999,30]
[422075324,1778551851000,-500.0,0.00040999,30]
[422075309,1778551851000,-151.0,0.00040999,30]
[422075288,1778551851000,-500.0,0.00040999,30]
[422075307,1778551851000,-152.0,0.00040999,30]
[422075283,1778551851000,-500.0,0.00040999,30]
[422075281,1778551851000,-152.0,0.00040999,30]
[422075282,1778551851000,-500.0,0.00040999,30]
[422075285,1778551851000,-200.0,0.00040999,30]
[422075284,1778551851000,-151.0,0.00040999,30]
[422075286,1778551851000,-152.0,0.00040999,30]
[422075287,1778551851000,-500.0,0.00040999,30]
[422075293,1778551851000,-500.0,0.00040999,30]
[422075291,1778551851000,-1000.0,0.00040999,30]
[422075290,1778551851000,-200.0,0.00040999,30]
[422075292,1778551851000,-152.0,0.00040999,30]
[422075294,1778551851000,-151.0,0.00040999,30]
[422075310,1778551851000,-500.0,0.00040999,30]
[422075295,1778551851000,-500.0,0.00040999,30]
[422075297,1778551851000,-1045.76144887,0.00040999,30]
[422075296,1778551851000,-200.0,0.00040999,30]
[422075298,1778551851000,-152.0,0.00040999,30]
[422075300,1778551851000,-500.0,0.00040999,30]
[422075305,1778551851000,-500.0,0.00040999,30]
[422075302,1778551851000,-200.0,0.00040999,30]
[422075301,1778551851000,-151.0,0.00040999,30]
[422075303,1778551851000,-152.0,0.00040999,30]
[422075299,1778551851000,-500.0,0.00040999,30]
[422075304,1778551851000,-500.0,0.00040999,30]
[422075306,1778551851000,-200.0,0.00040999,30]
[422075308,1778551851000,-500.0,0.00040999,30]
[422075289,1778551851000,-151.0,0.00040999,30]
[422075337,1778551851000,-168.3888056,0.00040999,30]
[422075339,1778551851000,-152.0,0.00040999,30]
[422075338,1778551851000,-209.79200169,0.00040999,30]
[422075371,1778551851000,-151.0,0.00040999,30]
[422075374,1778551851000,-151.0,0.00040999,30]
[422075372,1778551851000,-1500.0,0.00040999,30]
[422075373,1778551851000,-151.0,0.00040999,30]
[422075375,1778551851000,-151.0,0.00040999,30]
[422075376,1778551851000,-170.0,0.00040999,30]
[422075377,1778551851000,-156.587,0.00040999,30]
[422075379,1778551851000,-264.01940454,0.00040999,30]
[422075378,1778551851000,-151.0,0.00040999,30]
[422075381,1778551851000,-151.0,0.00040999,30]
[422075380,1778551851000,-176.29,0.00040999,30]
[422075382,1778551851000,-182.81273,0.00040999,30]
[422075388,1778551851000,-196.59114265,0.00040999,30]
[422075384,1778551851000,-189.57680101,0.00040999,30]
[422075383,1778551851000,-151.0,0.00040999,30]
[422075386,1778551851000,-1865.36488657,0.00040999,5]
[422075387,1778551851000,-151.0,0.00040999,30]
[422075385,1778551851000,-151.0,0.00040999,30]
[422075390,1778551851000,-208.53327574,0.00040999,5]
[422075389,1778551851000,-156.587,0.00040999,30]
[422075391,1778551851000,-203.86501493,0.00040999,30]
[422075393,1778551851000,-162.380719,0.00040999,30]
[422075392,1778551851000,-151.0,0.00040999,30]
[422075394,1778551851000,-211.40802048,0.00040999,30]
[422075335,1778551851000,-500.0,0.00040999,30]
[422075369,1778551851000,-151.0,0.00040999,30]
[422075370,1778551851000,-151.0,0.00040999,30]
[422075356,1778551851000,-151.0,0.00040999,30]
[422075365,1778551851000,-151.0,0.00040999,30]
[422075367,1778551851000,-1366.07479456,0.00040999,30]
[422075341,1778551851000,-500.0,0.00040999,30]
[422075340,1778551851000,-210.98782693,0.00040999,30]
[422075346,1778551851000,-152.0,0.00040999,30]
[422075344,1778551851000,-500.0,0.00040999,30]
[422075343,1778551851000,-152.0,0.00040999,30]
[422075345,1778551851000,-181.08010149,0.00040999,30]
[422075348,1778551851000,-187.78006525,0.00040999,30]
[422075347,1778551851000,-500.0,0.00040999,30]
[422075349,1778551851000,-152.0,0.00040999,30]
[422075353,1778551851000,-2345.0,0.00040999,30]
[422075351,1778551851000,-500.0,0.00040999,30]
[422075350,1778551851000,-2345.0,0.00040999,30]
[422075342,1778551851000,-174.61919141,0.00040999,30]
[422075357,1778551851000,-500.0,0.00040999,30]
[422075352,1778551851000,-194.72792766,0.00040999,30]
[422075366,1778551851000,-231.82907959,0.00040999,30]
[422075363,1778551851000,-348.09912779,0.00040999,30]
[422075364,1778551851000,-2345.0,0.00040999,30]
[422075362,1778551851000,-217.15233878,0.00040999,30]
[422075361,1778551851000,-500.0,0.00040999,30]
[422075368,1778551851000,-151.0,0.00040999,30]
[422075359,1778551851000,-2345.0,0.00040999,30]
[422075354,1778551851000,-500.0,0.00040999,30]
[422075355,1778551851000,-201.93286099,0.00040999,30]
[422075358,1778551851000,-209.40437684,0.00040999,30]
[422075360,1778551851000,-151.0,0.00040999,30]
[422075435,1778551852000,-7854.01291655,0.00041,120]
[422075437,1778551852000,-248.3043575,0.00041007,120]
[422075432,1778551852000,-423.91373241,0.00041,120]
[422075431,1778551852000,-50798.26577506,0.00041,90]
[422075434,1778551852000,-177.88262,0.00041,120]
[422075433,1778551852000,-157.5714128,0.00041,30]
[422075430,1778551852000,-248.91363602,0.00041,30]
[422075428,1778551852000,-189.764878,0.00041,30]
[422075429,1778551852000,-167.74053321,0.00041,30]
[422075427,1778551852000,-151.0,0.00041,30]
[422075426,1778551852000,-150.0,0.00041,37]
[422075436,1778551852000,-500.0,0.00041,120]
[422075439,1778551852000,-5259.02,0.00041007,2]
[422075454,1778551852000,-500.0,0.00041024,3]
[422075440,1778551852000,-499.64,0.00041007,120]
[422075441,1778551852000,-501.56870608,0.0004101,2]
[422075444,1778551852000,-247.78,0.00041014,120]
[422075445,1778551852000,-247.78,0.00041014,120]
[422075443,1778551852000,-163.97,0.00041014,120]
[422075447,1778551852000,-247.78,0.00041014,120]
[422075449,1778551852000,-271.01,0.00041014,120]
[422075448,1778551852000,-247.82,0.00041014,120]
[422075450,1778551852000,-208.11,0.00041014,120]
[422075446,1778551852000,-247.78,0.00041014,120]
[422075453,1778551852000,-179.12423177,0.00041018,120]
[422075452,1778551852000,-174.0,0.00041014,120]
[422075424,1778551852000,-151.0,0.00041,14]
[422075438,1778551852000,-6412.12,0.00041007,2]
[422075425,1778551852000,-196.36174983,0.00041,14]